bitfinex-derivatives/quotes_ETHF0:USTF0_20260303
["timestamp","ask_amount","ask_price","bid_price","bid_amount"]
[1772555337149,6.529,2008.0,2007.3,0.24909]
[1772555337349,2.07750091,2008.1,2007.3,0.24909]
[1772555337554,8.60650091,2008.1,2007.3,0.24909]
[1772555337755,2.07750091,2008.1,2007.7,0.24905]
[1772555338054,2.07750091,2008.0,2007.7,0.24905]
[1772555338251,2.0814479,2008.0,2007.7,0.24905]
[1772555338455,2.07750091,2008.0,2007.1,1.47037558]
[1772555338654,2.0814479,2008.0,2007.2,0.24912]
[1772555338855,2.07750091,2008.0,2007.6,0.24906]
[1772555339260,2.0814479,2008.0,2007.6,0.24906]
[1772555339559,2.07750091,2008.0,2007.6,0.24906]
[1772555339858,2.0814479,2007.8,2007.6,0.24906]
[1772555340060,2.07750091,2007.8,2007.6,0.24906]
[1772555340260,0.00394699,2007.7,2007.6,0.24906]
[1772555340459,0.00394699,2007.7,2006.8,11.46579589]
[1772555340460,2.0814479,2007.7,2006.8,11.46579589]
[1772555340650,2.07750091,2007.5,2006.6,3.9724637]
[1772555340850,2.07750091,2007.4,2006.6,0.00459417]
[1772555341458,2.07750091,2007.2,2006.6,0.25377417]
[1772555341854,2.07750091,2007.0,2006.6,0.25377417]
[1772555342159,2.07750091,2007.3,2006.6,0.24918]
[1772555342458,2.0814479,2007.3,2006.6,0.24918]
[1772555342857,2.07750091,2007.3,2006.6,0.24918]
[1772555343063,2.07750091,2007.2,2006.6,0.25532798]
[1772555343263,2.07750091,2007.9,2007.0,0.24914]
[1772555343464,2.07750091,2007.5,2007.0,0.24914]
[1772555344064,2.07750091,2007.3,2006.6,0.00614798]
[1772555344266,2.07750091,2007.2,2006.6,0.00614798]
[1772555344462,2.0814479,2007.2,2006.6,0.00614798]
[1772555344657,2.07750091,2007.2,2006.6,0.00614798]
[1772555344857,2.07750091,2006.9,2006.6,0.00614798]
[1772555345058,2.07750091,2007.7,2006.8,0.24917]
[1772555345364,2.07750091,2007.5,2006.8,0.24917]
[1772555345565,8.60650091,2007.4,2006.8,0.24917]
[1772555345765,2.07750091,2007.3,2006.8,0.24917]
[1772555345961,2.0814479,2007.3,2006.8,0.24917]
[1772555346157,2.0814479,2007.3,2006.8,0.25308421]
[1772555346364,2.07750091,2007.7,2007.2,0.24911]
[1772555347070,2.07750091,2008.0,2007.2,8.22432072]
[1772555347364,2.07750091,2007.9,2007.6,0.24906]
[1772555347763,0.00394699,2007.8,2007.6,0.24906]
[1772555347958,2.08383633,2008.2,2007.6,0.24906]
[1772555348670,2.08383633,2008.2,2007.0,0.24913]
[1772555349060,2.29244886,2007.8,2006.8,0.00391421]
[1772555349270,2.07750091,2007.6,2006.5,0.2492]
[1772555349572,2.07750091,2007.4,2006.0,0.24926]
[1772555349871,2.07750091,2007.1,2006.0,0.24926]
[1772555350071,2.07750091,2006.9,2006.0,0.24926]
[1772555350262,2.07750091,2006.8,2006.1,2.01818461]
[1772555350462,2.07750091,2006.8,2006.2,0.24924]
[1772555351970,2.07750091,2006.8,2006.0,0.00496396]
[1772555352166,2.07750091,2006.8,2005.7,0.2493]
[1772555352372,2.07750091,2006.6,2005.7,0.2493]
[1772555352573,2.07750091,2006.4,2005.7,0.2493]
[1772555352769,2.07750091,2006.2,2005.7,0.2493]
[1772555353167,0.00365703,2006.2,2005.7,2.27391116]
[1772555353470,2.08115794,2006.2,2005.7,0.25572655]
[1772555354169,0.00365703,2006.2,2005.7,0.25572655]
[1772555354371,0.00365703,2006.2,2005.7,2.27391116]
[1772555354669,6.53,2006.1,2005.1,2.01818461]
[1772555354876,6.53,2006.1,2005.2,0.24936]
[1772555354877,2.07750091,2006.0,2005.2,0.24936]
[1772555355071,2.07750091,2006.0,2004.8,2.01818461]
[1772555355072,2.07750091,2006.0,2004.9,0.2494]
[1772555355370,2.07750091,2006.0,2005.1,8.40231461]
[1772555355574,8.60750091,2006.0,2005.1,8.40231461]
[1772555355776,2.07750091,2006.0,2005.3,0.24935]
[1772555356273,2.07750091,2005.8,2005.3,0.24935]
[1772555356474,2.07750091,2005.8,2005.1,0.00360413]
[1772555356673,8.60750091,2005.7,2005.1,0.00360413]
[1772555356873,2.07750091,2005.5,2005.1,0.00360413]
[1772555357076,2.07750091,2006.1,2005.2,2.26754461]
[1772555357275,2.07750091,2006.0,2005.2,2.26754461]
[1772555357679,0.00365703,2006.2,2005.4,8.40125461]
[1772555357971,0.00365703,2006.2,2005.6,0.24931]
[1772555358375,1.96902785,2006.2,2005.6,0.24931]
[1772555359079,1.96537082,2007.0,2006.0,2.37083613]
[1772555359276,1.96537082,2006.9,2006.0,0.24926]
[1772555360077,1.96988259,2006.9,2006.0,0.24926]
[1772555360878,2.07464508,2006.8,2006.0,8.50887474]
[1772555361679,2.07464508,2006.8,2006.0,2.37685474]
[1772555361880,2.07464508,2006.8,2006.0,0.24926]
[1772555362484,2.07464508,2006.8,2006.0,2.37685474]
[1772555362982,2.07464508,2006.8,2006.0,8.50878474]
[1772555363687,2.07464508,2006.8,2006.0,0.24926]
[1772555364483,2.07464508,2006.6,2006.0,0.24926]
[1772555365190,2.07464508,2006.6,2005.5,0.24932]
[1772555366983,2.07464508,2006.4,2005.5,0.24932]
[1772555367586,2.07464508,2006.4,2005.1,0.00360413]
[1772555369488,2.07464508,2006.4,2005.2,0.24936]
[1772555369687,2.07464508,2006.2,2005.2,0.24936]
[1772555369890,2.07464508,2006.0,2005.2,0.24936]
[1772555370089,8.60664508,2005.9,2005.2,2.37695474]
[1772555370292,2.07464508,2005.9,2005.2,0.24936]
[1772555370787,2.07464508,2006.1,2005.6,0.24931]
[1772555371690,2.07464508,2006.1,2005.1,2.13119887]
[1772555371895,8.60664508,2006.2,2005.5,2.37691474]
[1772555372090,2.07464508,2006.1,2005.5,0.24932]
[1772555372691,2.07464508,2006.3,2005.9,0.24927]
[1772555373392,6.533,2006.6,2006.1,2.37684474]
[1772555373700,2.07464508,2006.8,2006.5,0.2492]
[1772555374398,2.07464508,2006.6,2005.6,2.12759474]
[1772555374597,2.07464508,2006.6,2006.0,0.24926]
[1772555374901,2.07464508,2006.8,2006.2,0.24924]
[1772555376400,2.07464508,2006.6,2005.7,0.2493]
[1772555376599,2.07464508,2006.6,2005.7,2.37689474]
[1772555377703,2.07464508,2006.6,2005.7,0.2493]
[1772555379307,2.07464508,2006.6,2005.3,2.12759474]
[1772555379707,2.07464508,2006.4,2005.7,0.2493]
[1772555380701,8.60664508,2006.7,2005.7,2.37689474]
[1772555380900,0.00451177,2006.9,2005.9,0.24928]
[1772555380901,2.07464508,2006.6,2005.9,0.24928]
[1772555381507,2.07464508,2006.5,2005.9,0.24928]
[1772555382008,2.07464508,2006.5,2005.9,2.37687474]
[1772555382309,2.07464508,2006.8,2006.3,0.24922]
[1772555383006,0.00451177,2006.9,2006.3,2.37681474]
[1772555384005,0.00451177,2006.9,2006.3,8.50783474]
[1772555384207,2.07464508,2007.2,2006.5,0.2492]
[1772555384612,2.07464508,2007.2,2006.1,2.12759474]
[1772555384810,2.07464508,2007.2,2006.0,0.24926]
[1772555385211,2.0783993,2007.2,2006.0,0.24926]
[1772555386514,2.07464508,2007.0,2005.5,4.21718953]
[1772555386716,2.07464508,2006.8,2005.5,0.24932]
[1772555386914,2.07464508,2006.6,2005.5,0.24932]
[1772555387115,2.07464508,2006.4,2005.5,0.24932]
[1772555388213,2.07464508,2006.4,2005.2,0.24936]
[1772555388812,2.00452285,2006.2,2005.6,0.24931]
[1772555389013,8.53652285,2006.2,2005.6,0.24931]
[1772555389213,2.00452285,2006.1,2005.6,0.24931]
[1772555389511,8.53652285,2006.2,2005.6,2.2454908]
[1772555390018,8.53652285,2006.2,2005.6,0.24931]
[1772555390220,2.00452285,2006.1,2005.6,0.24931]
[1772555391021,2.00452285,2006.5,2005.8,0.24929]
[1772555392318,8.53752285,2006.7,2005.8,2.2454708]
[1772555392519,2.00452285,2007.1,2006.2,2.2454208]
[1772555393916,2.00452285,2007.1,2006.6,0.24919]
[1772555394222,2.00452285,2007.1,2006.6,0.25455157]
[1772555394620,0.00375422,2007.2,2006.6,2.25073237]
[1772555394816,2.00827707,2007.2,2006.6,0.25455157]
[1772555395222,2.00827707,2007.2,2006.6,2.25073237]
[1772555395620,2.00452285,2007.4,2006.6,2.25073237]
[1772555396219,2.00452285,2007.4,2006.1,10.09946953]
[1772555396220,2.00452285,2007.4,2006.1,6.21330033]
[1772555396424,2.00452285,2007.4,2006.1,2.2454308]
[1772555396924,2.00452285,2007.4,2006.5,0.2492]
[1772555397125,8.53652285,2007.3,2006.5,2.2453808]
[1772555397322,2.00806714,2007.3,2006.5,2.25098135]
[1772555397522,8.54006714,2007.3,2006.5,2.25098135]
[1772555397824,0.00354429,2007.3,2006.9,2.2453308]
[1772555398020,2.00452285,2007.5,2006.9,2.2453308]
[1772555398824,2.00452285,2007.5,2006.9,0.24915]
[1772555399020,2.01018568,2007.5,2006.9,0.24915]
[1772555399224,2.01018568,2007.5,2006.5,0.00560055]
[1772555399921,2.01018568,2007.5,2006.4,0.2492]
[1772555400325,2.01018568,2007.5,2005.6,12.05825605]
[1772555400326,2.01018568,2007.5,2005.6,4.21717953]
[1772555400519,2.00452285,2007.1,2005.6,2.2454908]
[1772555400719,2.00452285,2006.9,2005.3,1.9961808]
[1772555400923,6.531,2007.0,2005.3,1.9961808]
[1772555400924,2.00452285,2006.7,2005.4,2.2455208]
[1772555401124,2.29677176,2006.8,2005.3,0.00396543]
[1772555401125,2.00452285,2006.5,2005.3,0.00396543]
[1772555401323,2.00452285,2006.5,2004.4,1.9961808]
[1772555401324,2.00452285,2006.3,2004.4,1.9961808]
[1772555401621,2.00452285,2006.0,2004.8,1.9961808]
[1772555401822,2.00452285,2006.0,2004.9,2.2455808]
[1772555402127,4.06217265,2006.5,2004.9,2.2455808]
[1772555402128,2.00452285,2006.5,2005.5,2.2455108]
[1772555402329,8.54022827,2006.5,2005.7,2.2454808]
[1772555402526,2.00922827,2006.5,2005.7,2.2454808]
[1772555402823,2.00922827,2006.5,2005.5,2.00234786]
[1772555403023,2.00922827,2006.5,2005.7,1.9961808]
[1772555403221,0.00470542,2006.5,2005.9,1.9961808]
[1772555403424,2.00452285,2007.1,2006.1,1.9961808]
[1772555403820,2.00452285,2007.1,2005.7,3.96786953]
[1772555404021,8.24450937,2007.0,2005.0,5.96405033]
[1772555404228,2.00452285,2006.6,2005.0,0.24939]
[1772555404529,2.00452285,2006.4,2005.3,1.9961808]
[1772555404729,2.00452285,2006.4,2004.7,2.2456108]
[1772555405124,2.00452285,2006.2,2004.9,2.2455808]
[1772555405319,2.00452285,2006.2,2004.7,0.00634778]
[1772555405819,2.00452285,2006.2,2004.3,10.74932953]
[1772555405820,2.00452285,2006.1,2004.2,4.73870176]
[1772555406020,2.00452285,2005.6,2004.2,0.77083223]
[1772555406329,2.00452285,2005.4,2004.2,0.77083223]
[1772555406930,2.00452285,2005.4,2004.2,2.77121392]
[1772555407130,2.00452285,2005.2,2004.3,1.9961808]
[1772555407532,8.53652285,2005.4,2004.4,2.2456408]
[1772555407735,2.00452285,2005.3,2004.4,2.2456408]
[1772555408031,2.00452285,2005.8,2004.8,2.2455908]
[1772555408222,2.00452285,2005.7,2004.8,2.2455908]
[1772555408426,2.00452285,2005.7,2004.5,1.9961808]
[1772555408628,2.00452285,2005.7,2004.2,1.02451312]
[1772555408829,2.00452285,2005.6,2004.2,0.77503312]
[1772555409730,6.534,2005.5,2004.3,1.9961808]
[1772555410032,2.00452285,2005.4,2003.8,1.9961808]
[1772555410234,2.00452285,2005.2,2003.2,1.9961808]
[1772555410832,2.00452285,2005.2,2003.3,2.2457808]
[1772555411032,2.00452285,2005.0,2003.3,2.25203843]
[1772555411427,8.726,2005.6,2003.3,2.25203843]
[1772555411428,2.00452285,2004.8,2003.6,1.9961808]
[1772555411628,2.00452285,2004.6,2003.6,1.9961808]
[1772555412031,2.00452285,2004.6,2003.8,1.9961808]
[1772555412233,8.54594193,2004.8,2003.8,1.9961808]
[1772555412433,2.00452285,2004.7,2003.5,1.9961808]
[1772555413232,2.00452285,2004.7,2003.3,0.00625763]
[1772555413435,2.00452285,2004.7,2002.9,1.9961808]
[1772555413831,2.00452285,2004.5,2002.9,1.9961808]
[1772555414236,8.54052285,2004.5,2003.3,1.9961808]
[1772555414534,2.00452285,2004.4,2003.4,2.2457708]
[1772555414734,2.00452285,2004.4,2003.3,0.00532515]
[1772555414932,2.00452285,2004.4,2003.3,2.00150595]
[1772555415234,2.00452285,2004.4,2003.3,0.00532515]
[1772555415934,2.00452285,2004.4,2002.8,2.2458408]
[1772555416136,2.00452285,2004.4,2002.8,1.9961808]
[1772555416334,2.00452285,2004.4,2002.5,1.9961808]
[1772555416736,2.00452285,2004.4,2002.5,2.00076139]
[1772555416942,2.00452285,2004.4,2002.7,1.9961808]
[1772555417237,2.00452285,2004.2,2002.7,1.9961808]
[1772555417534,2.00452285,2004.2,2003.3,1.9961808]
[1772555417736,2.00452285,2004.4,2003.6,2.2457408]
[1772555418134,8.48607557,2004.7,2003.6,2.2457408]
[1772555418336,6.537,2004.7,2004.0,2.14136461]
[1772555418644,1.94907557,2005.4,2004.5,1.89185461]
[1772555418940,1.94907557,2005.7,2004.9,1.89185461]
[1772555419138,6.538,2005.7,2004.8,6.38511]
[1772555419335,1.94907557,2006.2,2005.2,0.24936]
[1772555419537,1.94907557,2006.8,2005.7,1.89185461]
[1772555419841,2.05564753,2006.8,2005.7,0.0051453]
[1772555420133,2.05564753,2006.8,2004.9,2.04021297]
[1772555420340,2.05205053,2006.6,2004.9,2.04021297]
[1772555420537,2.05205053,2006.4,2004.9,2.04021297]
[1772555420737,2.05205053,2006.2,2005.0,2.28960297]
[1772555420941,2.05205053,2006.2,2005.1,2.04021297]
[1772555421142,2.05205053,2006.2,2005.1,2.04639764]
[1772555421442,2.05205053,2006.2,2005.1,0.00618467]
[1772555421742,2.05205053,2006.0,2005.1,0.00618467]
[1772555421937,2.05205053,2005.8,2004.4,2.28967297]
[1772555422143,2.05205053,2005.7,2004.4,2.28967297]
[1772555422842,2.05205053,2005.7,2004.4,2.04021297]
[1772555423044,2.05205053,2005.5,2004.4,2.04562219]
[1772555423340,2.05205053,2005.9,2004.8,2.04021297]
[1772555423743,2.05205053,2006.2,2005.0,2.04021297]
[1772555424437,2.05205053,2006.2,2005.2,2.04021297]
[1772555424645,2.05205053,2006.2,2004.9,6.13538]
[1772555424646,2.05205053,2006.2,2004.9,2.04021297]
[1772555425143,2.05205053,2006.0,2004.6,2.04021297]
[1772555425345,2.05205053,2005.8,2004.6,2.04021297]
[1772555425947,5.11552401,2005.8,2004.4,0.00540922]
[1772555426253,2.05205053,2005.7,2004.4,0.00540922]
[1772555426449,2.05205053,2005.5,2004.4,0.00540922]
[1772555426647,2.05205053,2005.3,2004.0,2.04021297]
[1772555426950,2.05205053,2005.1,2003.7,2.04021297]
[1772555427144,2.05205053,2005.1,2003.4,2.04021297]
[1772555427345,2.05205053,2004.9,2003.6,2.04021297]
[1772555427546,2.05833167,2004.9,2003.6,2.0453281]
[1772555427944,2.05833167,2004.9,2003.6,0.00511513]
[1772555427945,2.05205053,2004.7,2003.6,0.00511513]
[1772555428344,2.05205053,2004.5,2003.6,2.0453281]
[1772555430050,2.05205053,2004.5,2003.6,0.00511513]
[1772555430248,2.05205053,2004.5,2003.0,2.04021297]
[1772555430448,2.05205053,2004.3,2003.0,2.04021297]
[1772555430847,8.58905053,2004.2,2003.2,2.04021297]
[1772555431054,2.05205053,2004.1,2003.1,0.24963]
[1772555431254,2.05205053,2004.1,2003.1,0.25566598]
[1772555431448,2.05205053,2004.4,2003.4,2.04021297]
[1772555431649,6.538,2004.6,2003.6,2.04021297]
[1772555432144,2.05205053,2004.8,2003.6,2.04021297]
[1772555432348,2.05205053,2004.8,2003.8,2.04021297]
[1772555432550,0.00628114,2004.9,2004.2,2.04021297]
[1772555433349,2.05205053,2005.7,2004.6,2.04021297]
[1772555433550,2.05205053,2006.0,2004.8,2.04021297]
[1772555433750,8.59005053,2006.0,2005.0,2.04021297]
[1772555434050,2.05205053,2005.9,2004.9,2.04021297]
[1772555434251,2.05205053,2005.9,2004.6,2.28965297]
[1772555434451,2.05205053,2005.9,2004.3,2.04021297]
[1772555434760,2.05205053,2005.7,2004.3,0.00525984]
[1772555435448,2.05205053,2005.5,2004.4,2.28967297]
[1772555436253,2.05205053,2005.5,2004.3,0.00525984]
[1772555436454,2.05205053,2005.3,2003.5,2.04021297]
[1772555437351,2.05205053,2005.3,2003.5,2.04616132]
[1772555437856,2.05205053,2005.3,2003.7,2.04021297]
[1772555438055,2.05205053,2005.3,2003.8,0.24954]
[1772555438350,2.05205053,2005.1,2004.2,2.28970297]
[1772555439049,2.05205053,2005.1,2003.9,2.04021297]
[1772555439455,2.05205053,2005.1,2003.7,2.28976297]
[1772555439949,2.05205053,2004.9,2003.7,2.28976297]
[1772555440952,2.05205053,2004.9,2003.5,0.00594835]
[1772555441457,2.05205053,2004.5,2002.8,2.04021297]
[1772555441752,2.05205053,2004.3,2002.8,2.04021297]
[1772555442053,2.05205053,2004.3,2003.0,2.04021297]
[1772555442447,2.05205053,2004.1,2003.0,0.00455]
[1772555443254,6.538,2004.2,2003.2,2.04021297]
[1772555443455,8.59005053,2004.2,2003.3,2.28981297]
[1772555443656,2.05205053,2004.1,2003.0,2.04476297]
[1772555444261,2.05205053,2004.1,2003.0,0.00455]
[1772555444855,2.05205053,2004.1,2002.7,2.04021297]
[1772555445055,2.05205053,2004.1,2002.7,2.28988297]
[1772555445758,2.05205053,2004.1,2002.7,2.29511]
[1772555445958,2.05205053,2004.1,2002.7,0.00522703]
[1772555446358,2.05205053,2004.1,2002.7,2.04544]
[1772555446559,2.05205053,2003.9,2002.7,2.04544]
[1772555446861,2.05205053,2003.9,2002.7,0.00522703]
[1772555447757,2.05205053,2003.7,2002.7,0.00522703]
[1772555447961,2.05205053,2003.7,2002.3,2.04021297]
[1772555448150,2.05205053,2003.7,2001.7,1.80278243]
[1772555448351,1.94124105,2002.8,2001.4,1.80278243]
[1772555448657,1.94124105,2002.6,2001.5,2.05261243]
[1772555448858,6.54,2002.5,2001.5,2.05261243]
[1772555449058,1.94124105,2002.4,2001.5,1.80756757]
[1772555450262,6.54470126,2002.5,2001.5,1.80756757]
[1772555450463,1.94124105,2002.4,2001.5,1.80756757]
[1772555451355,6.54670126,2002.5,2001.5,1.80756757]
[1772555451757,6.54670126,2002.5,2001.7,1.80278243]
[1772555451958,0.00470126,2002.5,2001.7,1.80278243]
[1772555452160,0.00470126,2002.5,2001.9,1.80278243]
[1772555452666,4.06217265,2003.9,2001.9,1.80278243]
[1772555452667,6.542,2003.2,2002.1,1.80278243]
[1772555452861,6.542,2003.4,2002.1,1.80278243]
[1772555453060,1.94124105,2003.3,2002.1,1.80278243]
[1772555453263,1.94124105,2003.3,2002.2,2.05249243]
[1772555453560,1.94701835,2003.3,2002.2,2.05249243]
[1772555454264,0.0057773,2003.3,2002.2,2.05249243]
[1772555454459,1.94701835,2003.3,2002.2,2.05249243]
[1772555455061,0.0057773,2003.3,2002.7,1.80278243]
[1772555455263,0.0057773,2003.3,2002.9,1.80278243]
[1772555455458,1.94124105,2004.1,2003.1,1.80278243]
[1772555455665,1.94124105,2004.1,2002.5,1.80278243]
[1772555456266,1.94124105,2004.1,2002.9,1.80278243]
[1772555456566,1.94649056,2004.1,2003.2,2.05237243]
[1772555456765,1.94649056,2004.1,2003.2,1.80278243]
[1772555457962,0.00524951,2004.1,2003.4,1.80278243]
[1772555458263,0.00524951,2004.1,2003.6,1.80278243]
[1772555458459,6.543,2004.3,2003.6,1.80278243]
[1772555458864,1.94124105,2004.2,2003.0,1.80278243]
[1772555459467,1.94511578,2004.2,2003.0,1.80278243]
[1772555460563,3.06347348,2004.0,2002.2,1.80278243]
[1772555460769,3.06347348,2003.6,2002.2,1.80278243]
[1772555460961,3.06347348,2003.2,2001.6,1.80278243]
[1772555461162,1.94124105,2003.0,2001.6,1.80278243]
[1772555461370,1.94124105,2003.0,2001.1,1.80278243]
[1772555461670,3.06347348,2003.2,2001.3,1.80278243]
[1772555461671,1.94124105,2002.8,2001.3,1.80278243]
[1772555461871,1.94124105,2002.8,2001.1,0.00580777]
[1772555461872,1.94124105,2002.8,2001.5,1.80278243]
[1772555462371,1.94124105,2002.6,2001.5,1.80278243]
[1772555462571,1.94124105,2002.4,2001.5,1.80278243]
[1772555462766,1.94124105,2002.4,2001.4,0.24981]
[1772555462961,1.94124105,2001.9,2000.5,3.97229249]
[1772555463170,1.94124105,2002.0,2000.9,1.80278243]
[1772555463373,0.00500853,2002.6,2001.3,1.80278243]
[1772555463374,1.94124105,2002.3,2001.3,1.80278243]
[1772555463570,6.543,2002.4,2001.5,1.80278243]
[1772555463872,0.00500853,2002.6,2001.7,1.80278243]
[1772555464073,0.00500853,2002.6,2001.9,1.80278243]
[1772555465480,1.94624958,2002.6,2001.7,0.00597196]
[1772555466075,1.94624958,2002.6,2001.3,1.80278243]
[1772555466878,1.94124105,2002.3,2000.7,1.80278243]
[1772555467076,1.94124105,2002.1,2000.7,1.80278243]
[1772555467277,1.94124105,2002.1,2000.7,1.80763561]
[1772555468379,1.94124105,2001.9,2000.7,0.00485318]
[1772555469276,1.94124105,2001.5,1999.9,1.80278243]
[1772555469472,1.94124105,2001.3,2000.1,1.80278243]
[1772555469674,6.544,2001.2,2000.1,1.80278243]
[1772555469883,8.48524105,2001.2,2000.1,1.80278243]
[1772555470180,1.94124105,2001.1,2000.1,1.80708327]
[1772555470379,1.94617842,2001.1,2000.1,1.80708327]
[1772555470575,0.00493737,2001.1,2000.3,1.80278243]
[1772555470885,1.94124105,2001.5,2000.5,1.80278243]
[1772555471884,1.94729426,2001.5,2000.5,1.80278243]
[1772555472079,1.94729426,2001.5,2000.2,1.80278243]
[1772555472276,2.03429741,2001.5,2000.2,2.05273243]
[1772555472477,1.94729426,2001.5,2000.2,2.05273243]
[1772555472682,1.94729426,2001.5,2000.5,1.80278243]
[1772555472984,0.00605321,2001.5,2000.7,1.80278243]
[1772555473186,1.94729426,2001.5,2000.2,1.80278243]
[1772555474184,0.00605321,2001.5,2000.6,1.80278243]
[1772555474380,0.00605321,2001.5,2000.8,1.80278243]
[1772555474586,1.94729426,2001.5,2000.3,1.80278243]
[1772555476086,6.545,2001.4,2000.5,1.80278243]
[1772555477085,1.94124105,2001.3,2000.5,1.80278243]
[1772555477286,1.94124105,2001.3,2000.2,1.80278243]
[1772555477581,1.94124105,2001.3,2000.5,1.80278243]
[1772555477981,1.94124105,2001.3,2000.2,1.87813688]
[1772555479183,1.94124105,2001.3,2000.1,1.89297197]
[1772555479985,1.85137072,2001.1,2000.1,1.89297197]
[1772555481283,6.545,2001.0,2000.1,1.89297197]
[1772555481486,6.545,2001.0,1999.4,6.545]
[1772555481487,1.85137072,2000.7,1999.3,2.13874113]
[1772555482091,1.85137072,2000.7,1999.8,1.88867113]
[1772555482288,8.39637072,2000.7,1999.8,1.88867113]
[1772555482489,8.39637072,2000.7,1999.8,1.89490019]
[1772555482690,1.85137072,2000.6,1999.8,0.00622906]
[1772555483689,1.85137072,2000.6,1999.2,1.03093671]
[1772555484090,1.85137072,2000.6,1999.2,2.66952784]
[1772555484289,1.85137072,2000.4,1999.3,1.88867113]
[1772555484684,1.85137072,2000.4,1999.3,1.89234343]
[1772555484888,1.85137072,2000.4,1999.3,0.0036723]
[1772555485084,1.85137072,2000.3,1998.7,1.88867113]
[1772555485586,1.85137072,2000.3,1997.9,6.15601]
[1772555485587,1.85137072,2000.1,1998.6,1.88867113]
[1772555485785,1.85137072,1999.9,1998.3,0.25019]
[1772555485990,1.85137072,1999.9,1998.3,2.1425132]
[1772555485991,1.85755872,1999.9,1998.3,2.1425132]
[1772555486191,1.85755872,1999.9,1998.3,1.8923232]
[1772555486887,1.85755872,1999.9,1998.4,0.25019]
[1772555487093,1.85755872,1999.9,1998.5,1.88867113]
[1772555487995,1.85137072,1999.7,1998.5,1.88867113]
[1772555488192,1.85137072,1999.7,1998.7,1.88867113]
[1772555488495,6.546,1999.8,1998.9,1.88867113]
[1772555489294,8.39737072,1999.8,1998.9,1.88867113]
[1772555489694,0.006188,1999.9,1998.9,1.88867113]
[1772555490798,1.85755872,1999.9,1998.9,1.88867113]
[1772555492095,6.546,1999.8,1998.9,1.88867113]
[1772555492295,6.546,2000.3,1999.3,1.88867113]
[1772555492790,6.546,2000.3,1999.5,1.88867113]
[1772555492996,6.546,2000.3,1999.7,1.88867113]
[1772555493291,0.00483365,2000.3,1999.9,1.88867113]
[1772555493497,8.39737072,2000.8,1999.9,1.88867113]
[1772555493897,6.546,2000.8,2000.1,1.88867113]
[1772555494500,6.55232524,2000.8,2000.1,1.88867113]
[1772555495602,1.85137072,2000.7,1999.7,0.00370936]
[1772555495901,1.85137072,2000.7,1999.7,1.89238049]
[1772555497302,6.55232524,2000.8,1999.7,1.89238049]
[1772555497606,6.55232524,2000.8,1999.9,1.88867113]
[1772555497800,6.55232524,2000.8,1999.7,0.00370936]
[1772555497801,6.55232524,2000.8,2000.1,1.88867113]
[1772555498500,1.85137072,2000.7,1999.8,1.88867113]
[1772555499003,6.55232524,2000.8,2000.0,1.88867113]
[1772555499198,0.00632524,2000.8,2000.2,1.88867113]
[1772555499504,1.85137072,2001.4,2000.2,1.88867113]
[1772555499697,1.85137072,2001.4,2000.4,1.88867113]
[1772555500196,6.19450332,2002.1,2000.3,0.24995]
[1772555500197,1.85137072,2001.9,2001.0,1.88867113]
[1772555501403,1.85519309,2001.9,2000.5,1.88867113]
[1772555503004,1.85519309,2001.9,2000.7,1.88867113]
[1772555504295,1.85519309,2001.9,2000.9,1.88867113]
[1772555504498,8.39919309,2001.9,2000.9,1.88867113]
[1772555504700,1.85137072,2001.8,2000.5,1.88867113]
[1772555504895,1.85137072,2001.8,2000.3,1.88867113]
[1772555505705,1.85137072,2001.7,1999.8,1.88867113]
[1772555505902,1.85137072,2001.5,1999.8,1.88867113]
[1772555506096,1.85137072,2001.4,1999.8,1.88867113]
[1772555506305,1.85137072,2001.2,1999.8,1.88867113]
[1772555507110,1.85137072,2001.2,2000.1,2.13864113]
[1772555507806,8.22145122,2001.3,2000.1,2.13864113]
[1772555508109,1.67845122,2001.2,1999.8,1.73265098]
[1772555508309,1.67845122,2001.2,1999.7,0.00370936]
[1772555509210,5.81834684,2001.2,1999.7,0.00370936]
[1772555509505,1.67845122,2001.0,1999.7,1.73636034]
[1772555510108,1.67845122,2001.0,1999.9,1.73265098]
[1772555510308,8.22245122,2000.9,1999.9,1.73265098]
[1772555510510,1.67845122,2000.8,1999.7,0.00370936]
[1772555511413,1.67845122,2000.8,1999.7,1.73636034]
[1772555512405,1.67845122,2000.8,1999.7,0.00370936]
[1772555512610,1.67845122,2000.8,1999.1,1.05982966]
[1772555513713,1.67845122,2000.8,1999.1,1.06466663]
[1772555515010,1.67845122,2000.8,1999.3,1.17928232]
[1772555515213,1.67845122,2000.6,1999.5,1.17547028]
[1772555515406,8.22245122,2000.5,1999.6,0.25004]
[1772555515609,1.67845122,2000.5,1999.7,1.17547028]
[1772555516204,1.67845122,2000.5,1999.5,1.17184108]
[1772555516412,1.67845122,2000.5,1999.2,1.17184108]
[1772555517113,1.67845122,2000.5,1999.3,1.42277544]
[1772555517911,1.67845122,2000.5,1999.1,1.17392521]
[1772555518116,1.67845122,2000.5,1999.1,0.00483697]
[1772555518312,1.67845122,2000.4,1999.1,0.00483697]
[1772555518518,1.67845122,2000.3,1999.1,0.00483697]
[1772555519010,1.67845122,2000.2,1999.1,0.00483697]
[1772555519208,4.15647812,2000.3,1998.5,1.16094546]
[1772555519209,1.67845122,2000.0,1998.5,1.16094546]
[1772555519418,1.67845122,2000.0,1998.3,1.41597243]
[1772555519419,1.67845122,1999.9,1998.3,1.41597243]
[1772555519612,1.67845122,1999.9,1998.3,0.25019]
[1772555519613,1.67845122,1999.8,1998.3,0.25019]
[1772555520111,1.67845122,1999.8,1998.3,0.00481211]
[1772555520313,1.67845122,1999.6,1998.3,1.1672813]
[1772555520510,1.67845122,1999.6,1998.5,1.16246919]
[1772555520707,1.67845122,1999.6,1998.3,0.00481211]
[1772555520708,1.67845122,1999.6,1998.7,1.16433649]
[1772555521110,1.67845122,1999.6,1998.3,0.00481211]
[1772555521317,5.83492934,1999.6,1998.3,0.00481211]
[1772555521614,1.67845122,1999.5,1997.7,1.16067199]
[1772555521914,1.67845122,1999.1,1997.6,0.25029]
[1772555522223,1.67845122,1998.9,1997.9,1.16159023]
[1772555522410,1.67845122,1998.8,1997.9,1.16159023]
[1772555522616,1.6820328,1998.8,1997.9,1.16609555]
[1772555522812,1.6820328,1998.8,1997.9,0.00450532]
[1772555523414,1.67845122,1998.6,1997.9,0.00450532]
[1772555523616,1.67845122,1998.6,1997.2,1.16072615]
[1772555523923,1.67845122,1998.6,1996.9,1.16090621]
[1772555524311,1.67845122,1998.6,1996.8,0.25038]
[1772555524620,1.67845122,1998.6,1996.8,0.25580834]
[1772555525016,1.67845122,1998.6,1996.8,0.00542834]
[1772555525017,4.15647812,1998.6,1996.8,0.00542834]
[1772555525220,1.67845122,1998.3,1996.8,0.00542834]
[1772555525721,1.67845122,1998.1,1995.6,0.25053]
[1772555525915,1.67845122,1997.7,1995.6,1.20973685]
[1772555526110,1.67845122,1997.7,1995.1,6.16467]
[1772555526111,1.67845122,1997.4,1995.1,1.20973685]